{"text_format":"1","workbook":"xlsx","n_sheets":3,"sheets":["Июль-Август 24","Grain Partners","Задача"],"not_rendered":{"charts":0,"images":0,"macros":1,"external_links":0,"defined_names":1,"comments":0,"pivot_tables":0},"unopened":[],"bounds":{"document_bytes":16777216,"sheet_cells":100000,"rows_first":2000,"rows_last":500,"rows_between":2000,"halvings":0,"cell_chars":16384,"cell_head_chars":4096},"cells_cut":0,"cells_raw":0,"read":"whole","date_system":"1900"}

{"sheet":"Июль-Август 24","index":0,"n_rows":78,"n_cols":16,"rows_kept":78,"cut":false,"hidden":false,"merged":[[1,15,42,16],[3,0,10,0],[11,0,18,0],[19,0,26,0],[27,0,34,0],[35,0,42,0],[1,1,2,2],[1,3,2,4],[1,5,2,6],[1,7,2,8],[1,9,2,10],[1,11,2,12],[0,1,0,2],[0,3,0,4],[43,13,44,14],[43,15,84,16],[45,0,52,0],[53,0,60,0],[61,0,68,0],[69,0,76,0],[77,0,84,0],[43,1,44,2],[43,3,44,4],[43,5,44,6],[43,7,44,8],[43,9,44,10],[43,11,44,12],[1,13,2,14]]}
[null,"Желтым отмечаем просрочку плана",null,"Зеленым отмечаем выполнение/Факт"]
[2024,"Понедельник",null,"Вторник",null,"Среда",null,"Четверг",null,"Пятница",null,"Суббота",null,"Воскресенье",null,"Июль"]
["Неделя"]
[27,1,null,2,null,3,null,4,null,5,null,6,null,7]
[]
[]
[]
[]
[]
[]
[]
[28,8,null,9,null,10,null,11,null,12,null,13,null,14]
[null,null,null,null,null,"Grain Partners","отправка 2 КП",null,null,"Grain Partners","17x40фут. ИКТ прибытие",null,null,"Харвест","7x80фут. Привл. Прибытие"]
[null,null,null,null,null,null,"56ктк",null,null,"Grain Partners","оформление вет. Свид. Клиент"]
[]
[]
[]
[]
[]
[29,15,null,16,null,17,null,18,null,19,null,20,null,21]
[null,"Харвест","7x80фут. Привл. Прибытие","Харвест","7x80фут. Привл. Прибытие","Харвест","10x80фут. Привл. Прибытие"]
[null,"Grain Partners","1х80фут. ИКТ 25x40фут. ИКТ прибытие"]
[]
[]
[]
[]
[]
[30,22,null,23,null,24,null,25,null,26,null,27,null,28]
[]
[]
[]
[]
[]
[]
[]
[31,29,null,30,null,31]
[]
[]
[]
[]
[]
[]
[]
[2024,"Понедельник",null,"Вторник",null,"Среда",null,"Четверг",null,"Пятница",null,"Суббота",null,"Воскресенье",null,"Август"]
["Неделя"]
[27,null,null,null,null,null,null,1,null,2,null,3,null,4]
[]
[]
[]
[]
[]
[]
[]
[28,5,null,6,null,7,null,8,null,9,null,10,null,11]
[]
[]
[]
[]
[]
[]
[]
[29,12,null,13,null,14,null,15,null,16,null,17,null,18]
[]
[]
[]
[]
[]
[]
[]
[30,19,null,20,null,21,null,22,null,23,null,24,null,25]
[]
[]
[]
[]
[]
[]
[]
[31,26,null,27,null,28,null,29,null,30,null,31]

{"sheet":"Grain Partners","index":1,"n_rows":124,"n_cols":83,"rows_kept":124,"cut":false,"hidden":false,"merged":[[1,0,2,0],[1,1,2,1]]}
["Дата",{"$f":"TODAY()","v":"2024-07-18"},"Сквозное планирование мультимодальной перевозки Grain Partners с участием ТЛЦ Жетыген"]
["Статус","Клиент","Операция","Ответственный","Принадлежность ПС","Тип","План Кол-во","Факт. кол-во","Кол-во затраченных на операцию дней","факт","факт","факт","факт","факт","факт","факт","факт","факт","факт","факт","факт","факт","факт","факт","факт","факт","факт","факт","факт","факт","факт","факт","факт","факт","факт","факт","факт","факт","факт","факт","факт","факт","факт","факт","факт","факт","факт","факт","факт","факт","факт","факт","факт","факт","факт","факт","факт","факт","факт","факт","факт","факт","факт","факт","факт","факт","факт","факт","факт","факт","факт","факт","факт","факт","факт","факт","факт","факт","факт","факт","факт","факт","факт"]
[null,null,null,null,null,null,null,null,null,"2024-07-01","2024-07-02","2024-07-03","2024-07-04","2024-07-05","2024-07-06","2024-07-07","2024-07-08","2024-07-09","2024-07-10","2024-07-11","2024-07-12","2024-07-13","2024-07-14","2024-07-15","2024-07-16","2024-07-17","2024-07-18","2024-07-19","2024-07-20","2024-07-21","2024-07-22","2024-07-23","2024-07-24","2024-07-25","2024-07-26","2024-07-27","2024-07-28","2024-07-29","2024-07-30","2024-07-31","2024-08-01","2024-08-02","2024-08-03","2024-08-04","2024-08-05","2024-08-06","2024-08-07","2024-08-08","2024-08-09","2024-08-10","2024-08-11","2024-08-12","2024-08-13","2024-08-14","2024-08-15","2024-08-16","2024-08-17","2024-08-18","2024-08-19","2024-08-20","2024-08-21","2024-08-22","2024-08-23","2024-08-24","2024-08-25","2024-08-26","2024-08-27","2024-08-28","2024-08-29","2024-08-30","2024-08-31","2024-09-01","2024-09-02","2024-09-03","2024-09-04","2024-09-05","2024-09-06","2024-09-07","2024-09-08","2024-09-09","2024-09-10","2024-09-11","2024-09-12"]
[null,"Grain Partners"]
[null,null,"Станция отправления",null,null,null,null,{"$f":"SUM(J5:CE5)","v":0},{"$f":"COUNTA(J5:CE5)","v":0}]
[null,null,"Грузоотправитель",null,null,null,null,0]
[null,null,"Подача ГУ на экспорт с ТЛЦ Жетыген, контейнеры","Grain Partners, Клиентский менеджер","На клиенте","40HC",55,0]
[null,null,"Выдача релиза на ктк COC","ИКТ","ИКТ","40HC",54,0]
[null,null,"Выдача релиза на ктк SOC (факт завоза на терминал)","ИКТ","ИКТ","40HC",2,0]
[null,null,"Прибытие хопперов на ст.Жетыген","ТЛЦ Жетыген","ИКТ",null,21,126,1,21,null,null,null,null,21,null,21,null,null,null,null,21,null,null,null,21,null,null,null,21]
[null,null,"Оформление порожних хопперов после выгрузки",null,null,null,21,0,2]
[null,null,"Затарка груза в ктк","ТЛЦ Жетыген",null,"40HC",55,0,3]
[null,null,"Реестр затаренных ктк","ТЛЦ Жетыген",null,null,55,0,4]
[null,null,"Оформление вет. свидетельства","Клиент",null,null,55,0,5]
[null,null,"Выравнивание груза в ктк","ТЛЦ Жетыген",null,null,55,0,6]
[null,null,"Наличие платформ под перевозку","ИКТ","ИКТ","Платформа 80-фут.",2,0,7]
[null,null,"Наличие платформ под перевозку","ИКТ","ИКТ","Платформа 40-фут.",42,0,8]
[null,null,"Подача собственных платформ","ИКТ","ИКТ","Платформа 80-фут.",0,0,9]
[null,null,"Подача собственных платформ","ИКТ","ИКТ","Платформа 40-фут.",0,0,10]
[null,null,"Дата погрузки ктк на платформы","ТЛЦ Жетыген",null,null,55,0,11]
[null,null,"Реестр погрузки (ктк/платформы/пломбы)","ТЛЦ Жетыген",null,null,55,0,12]
[null,null,"Таможенное оформление","Клиент",null,null,55,0,13]
[null,null,"Оформление ЖД документов","ТЛЦ Жетыген",null,null,55,0,14]
[null,null,"Отправление КП",null,null,null,1,0,15]
[null,null,"Дата прибытия на ст. Алтынколь-эксп.","Диспетчерский аппарат, ДУП",null,null,null,0]
[null,null,"Выгрузка Алтынколь Экс (Хоргос) ктк","Клиентский менеджер, КД","ИКТ",null,55,0]
[null,null,"Дата сдачи ктк в сток ИКТ","Grain Partners, Клиентский менеджер","ИКТ",null,55,0]
[null,null,"Возврат порожних пл на ст. Алтынколь","Диспетчерский аппарат, ДУП","ИКТ",null,null,0]
[null,"FORT"]
[null,null,"Станция отправления",null,null,null,null,{"$f":"SUM(J30:CE30)","v":0}]
[null,null,"Грузоотправитель",null,null,null,null,0]
[null,null,"Подача ГУ на экспорт с ТЛЦ Жетыген, контейнеры","Grain Partners, Клиентский менеджер","На клиенте","40HC",55,0]
[null,null,"Выдача релиза на ктк COC","ИКТ","ИКТ","40HC",54,0]
[null,null,"Выдача релиза на ктк SOC (факт завоза на терминал)","ИКТ","ИКТ","40HC",2,0]
[null,null,"Прибытие хопперов на ст.Жетыген","ТЛЦ Жетыген","ИКТ",null,21,63,1,null,null,21,null,null,null,null,21,null,null,null,null,null,null,null,null,21]
[null,null,"Оформление порожних хопперов после выгрузки",null,null,null,21,0,2]
[null,null,"Затарка груза в ктк","ТЛЦ Жетыген",null,"40HC",55,0,3]
[null,null,"Реестр затаренных ктк","ТЛЦ Жетыген",null,null,55,{"$f":"SUM(J38:CE38)","v":0},4]
[null,null,"Оформление вет. свидетельства","Клиент",null,null,55,0,5]
[null,null,"Выравнивание груза в ктк","ТЛЦ Жетыген",null,null,55,0,6]
[null,null,"Наличие платформ под перевозку","ИКТ","ИКТ","Платформа 80-фут.",0,{"$f":"SUM(J41:CE41)","v":0},7]
[null,null,"Наличие платформ под перевозку","ИКТ","ИКТ","Платформа 40-фут.",0,{"$f":"SUM(J42:CE42)","v":0},8]
[null,null,"Подача собственных платформ","ИКТ","ИКТ","Платформа 80-фут.",0,{"$f":"SUM(J43:CE43)","v":0},9]
[null,null,"Подача собственных платформ","ИКТ","ИКТ","Платформа 40-фут.",0,{"$f":"SUM(J44:CE44)","v":0},10]
[null,null,"Дата погрузки ктк на платформы","ТЛЦ Жетыген",null,null,55,null,11]
[null,null,"Реестр погрузки (ктк/платформы/пломбы)","ТЛЦ Жетыген",null,null,55,null,12]
[null,null,"Таможенное оформление","Клиент",null,null,55,{"$f":"SUM(J47:CE47)","v":0},13]
[null,null,"Оформление ЖД документов","ТЛЦ Жетыген",null,null,55,{"$f":"SUM(J48:CE48)","v":0},14]
[null,null,"Отправление КП",null,null,null,1,0,15]
[null,null,"Дата прибытия на ст. Алтынколь-эксп.","Диспетчерский аппарат, ДУП",null,null,null,{"$f":"SUM(J50:CE50)","v":0}]
[null,null,"Выгрузка Алтынколь Экс (Хоргос) ктк","Клиентский менеджер, КД","ИКТ",null,55,{"$f":"SUM(J51:CE51)","v":0}]
[null,null,"Дата сдачи ктк в сток ИКТ","Grain Partners, Клиентский менеджер","ИКТ",null,55,{"$f":"SUM(J52:CE52)","v":0}]
[null,"Кемер Логистик"]
[null,null,"Станция отправления",null,null,null,null,{"$f":"SUM(J54:CE54)","v":0}]
[null,null,"Грузоотправитель",null,null,null,null,0]
[null,null,"Подача ГУ на экспорт с ТЛЦ Жетыген, контейнеры","Grain Partners, Клиентский менеджер","На клиенте","40HC",55,0]
[null,null,"Выдача релиза на ктк COC","ИКТ","ИКТ","40HC",54,0]
[null,null,"Выдача релиза на ктк SOC (факт завоза на терминал)","ИКТ","ИКТ","40HC",2,0]
[null,null,"Прибытие хопперов на ст.Жетыген","ТЛЦ Жетыген","ИКТ",null,21,84,1,null,null,null,null,null,21,null,null,null,null,null,null,21,null,null,null,null,null,null,null,21,null,null,21]
[null,null,"Оформление порожних хопперов после выгрузки",null,null,null,21,0,2]
[null,null,"Затарка груза в ктк","ТЛЦ Жетыген",null,"40HC",55,0,3]
[null,null,"Реестр затаренных ктк","ТЛЦ Жетыген",null,null,55,{"$f":"SUM(J62:CE62)","v":0},4]
[null,null,"Оформление вет. свидетельства","Клиент",null,null,55,0,5]
[null,null,"Выравнивание груза в ктк","ТЛЦ Жетыген",null,null,55,0,6]
[null,null,"Наличие платформ под перевозку","ИКТ","ИКТ","Платформа 80-фут.",0,{"$f":"SUM(J65:CE65)","v":0},7]
[null,null,"Наличие платформ под перевозку","ИКТ","ИКТ","Платформа 40-фут.",0,{"$f":"SUM(J66:CE66)","v":0},8]
[null,null,"Подача собственных платформ","ИКТ","ИКТ","Платформа 80-фут.",0,{"$f":"SUM(J67:CE67)","v":0},9]
[null,null,"Подача собственных платформ","ИКТ","ИКТ","Платформа 40-фут.",0,{"$f":"SUM(J68:CE68)","v":0},10]
[null,null,"Дата погрузки ктк на платформы","ТЛЦ Жетыген",null,null,55,null,11]
[null,null,"Реестр погрузки (ктк/платформы/пломбы)","ТЛЦ Жетыген",null,null,55,null,12]
[null,null,"Таможенное оформление","Клиент",null,null,55,{"$f":"SUM(J71:CE71)","v":0},13]
[null,null,"Оформление ЖД документов","ТЛЦ Жетыген",null,null,55,{"$f":"SUM(J72:CE72)","v":0},14]
[null,null,"Отправление КП",null,null,null,1,0,15]
[null,null,"Дата прибытия на ст. Алтынколь-эксп.","Диспетчерский аппарат, ДУП",null,null,null,{"$f":"SUM(J74:CE74)","v":0}]
[null,null,"Выгрузка Алтынколь Экс (Хоргос) ктк","Клиентский менеджер, КД","ИКТ",null,55,{"$f":"SUM(J75:CE75)","v":0}]
[null,null,"Дата сдачи ктк в сток ИКТ","Grain Partners, Клиентский менеджер","ИКТ",null,55,{"$f":"SUM(J76:CE76)","v":0}]
[null,"Смарт Ебао"]
[null,null,"Станция отправления",null,null,null,null,{"$f":"SUM(J78:CE78)","v":0}]
[null,null,"Грузоотправитель",null,null,null,null,0]
[null,null,"Подача ГУ на экспорт с ТЛЦ Жетыген, контейнеры","Grain Partners, Клиентский менеджер","На клиенте","40HC",55,0]
[null,null,"Выдача релиза на ктк COC","ИКТ","ИКТ","40HC",54,0]
[null,null,"Выдача релиза на ктк SOC (факт завоза на терминал)","ИКТ","ИКТ","40HC",2,0]
[null,null,"Прибытие хопперов на ст.Жетыген","ТЛЦ Жетыген","ИКТ",null,21,63,1,21,null,21,null,null,null,null,null,null,null,null,21]
[null,null,"Оформление порожних хопперов после выгрузки",null,null,null,21,0,2]
[null,null,"Затарка груза в ктк","ТЛЦ Жетыген",null,"40HC",55,0,3]
[null,null,"Реестр затаренных ктк","ТЛЦ Жетыген",null,null,55,{"$f":"SUM(J86:CE86)","v":0},4]
[null,null,"Оформление вет. свидетельства","Клиент",null,null,55,0,5]
[null,null,"Выравнивание груза в ктк","ТЛЦ Жетыген",null,null,55,0,6]
[null,null,"Наличие платформ под перевозку","ИКТ","ИКТ","Платформа 80-фут.",0,{"$f":"SUM(J89:CE89)","v":0},7]
[null,null,"Наличие платформ под перевозку","ИКТ","ИКТ","Платформа 40-фут.",0,{"$f":"SUM(J90:CE90)","v":0},8]
[null,null,"Подача собственных платформ","ИКТ","ИКТ","Платформа 80-фут.",0,{"$f":"SUM(J91:CE91)","v":0},9]
[null,null,"Подача собственных платформ","ИКТ","ИКТ","Платформа 40-фут.",0,{"$f":"SUM(J92:CE92)","v":0},10]
[null,null,"Дата погрузки ктк на платформы","ТЛЦ Жетыген",null,null,55,null,11]
[null,null,"Реестр погрузки (ктк/платформы/пломбы)","ТЛЦ Жетыген",null,null,55,null,12]
[null,null,"Таможенное оформление","Клиент",null,null,55,{"$f":"SUM(J95:CE95)","v":0},13]
[null,null,"Оформление ЖД документов","ТЛЦ Жетыген",null,null,55,{"$f":"SUM(J96:CE96)","v":0},14]
[null,null,"Отправление КП",null,null,null,1,0,15]
[null,null,"Дата прибытия на ст. Алтынколь-эксп.","Диспетчерский аппарат, ДУП",null,null,null,{"$f":"SUM(J98:CE98)","v":0}]
[null,null,"Выгрузка Алтынколь Экс (Хоргос) ктк","Клиентский менеджер, КД","ИКТ",null,55,{"$f":"SUM(J99:CE99)","v":0}]
[null,null,"Дата сдачи ктк в сток ИКТ","Grain Partners, Клиентский менеджер","ИКТ",null,55,{"$f":"SUM(J100:CE100)","v":0}]
[null,"Two Lines"]
[null,null,"Станция отправления",null,null,null,null,{"$f":"SUM(J102:CE102)","v":0}]
[null,null,"Грузоотправитель",null,null,null,null,0]
[null,null,"Подача ГУ на экспорт с ТЛЦ Жетыген, контейнеры","Grain Partners, Клиентский менеджер","На клиенте","40HC",55,0]
[null,null,"Выдача релиза на ктк COC","ИКТ","ИКТ","40HC",54,0]
[null,null,"Выдача релиза на ктк SOC (факт завоза на терминал)","ИКТ","ИКТ","40HC",2,0]
[null,null,"Прибытие хопперов на ст.Жетыген","ТЛЦ Жетыген","ИКТ",null,21,21,1,null,null,null,21]
[null,null,"Оформление порожних хопперов после выгрузки",null,null,null,21,0,2]
[null,null,"Затарка груза в ктк","ТЛЦ Жетыген",null,"40HC",55,0,3]
[null,null,"Реестр затаренных ктк","ТЛЦ Жетыген",null,null,55,0,4]
[null,null,"Оформление вет. свидетельства","Клиент",null,null,55,0,5]
[null,null,"Выравнивание груза в ктк","ТЛЦ Жетыген",null,null,55,{"$f":"SUM(J112:CE112)","v":0},6]
[null,null,"Наличие платформ под перевозку","ИКТ","ИКТ","Платформа 80-фут.",0,{"$f":"SUM(J113:CE113)","v":0},7]
[null,null,"Наличие платформ под перевозку","ИКТ","ИКТ","Платформа 40-фут.",0,{"$f":"SUM(J114:CE114)","v":0},8]
[null,null,"Подача собственных платформ","ИКТ","ИКТ","Платформа 80-фут.",0,{"$f":"SUM(J115:CE115)","v":0},9]
[null,null,"Подача собственных платформ","ИКТ","ИКТ","Платформа 40-фут.",0,{"$f":"SUM(J116:CE116)","v":0},10]
[null,null,"Дата погрузки ктк на платформы","ТЛЦ Жетыген",null,null,55,null,11]
[null,null,"Реестр погрузки (ктк/платформы/пломбы)","ТЛЦ Жетыген",null,null,55,null,12]
[null,null,"Таможенное оформление","Клиент",null,null,55,{"$f":"SUM(J119:CE119)","v":0},13]
[null,null,"Оформление ЖД документов","ТЛЦ Жетыген",null,null,55,{"$f":"SUM(J120:CE120)","v":0},14]
[null,null,"Отправление КП",null,null,null,1,0,15]
[null,null,"Дата прибытия на ст. Алтынколь-эксп.","Диспетчерский аппарат, ДУП",null,null,null,{"$f":"SUM(J122:CE122)","v":0}]
[null,null,"Выгрузка Алтынколь Экс (Хоргос) ктк","Клиентский менеджер, КД","ИКТ",null,55,{"$f":"SUM(J123:CE123)","v":0}]
[null,null,"Дата сдачи ктк в сток ИКТ","Grain Partners, Клиентский менеджер","ИКТ",null,55,{"$f":"SUM(J124:CE124)","v":0}]

{"sheet":"Задача","index":2,"n_rows":0,"n_cols":0,"rows_kept":0,"cut":false,"hidden":false,"merged":[]}